[Event "Titled Tuesday Blitz September 13 Early 2022"]
[White "Grandelius, Nils"]
[Black "Shailesh, Dravid"]
[WhiteFideId "1710400"]
[BlackFideId "25017969"]
[WhiteElo "2617"]
[BlackElo "2142"]
[Result "1-0"]
[Round "04"]
[TimeControl "180+1"]
[Date "2022.09.13"]
[WhiteClock "0:00:06"]
[BlackClock "0:00:02"]

1. d4 {[%clk 0:03:00]}  Nf6 {[%clk 0:02:59]} 2. c4 {[%clk 0:03:01]}  e6 {[%clk 0:02:59]} 3. Nc3 {[%clk 0:03:02]}  Bb4 {[%clk 0:02:58]} 4. Qc2 {[%clk 0:03:02]}  O-O {[%clk 0:02:55]} 5. Bg5 {[%clk 0:03:00]}  c5 {[%clk 0:02:53]} 6. dxc5 {[%clk 0:02:55]}  Na6 {[%clk 0:02:52]} 7. e3 {[%clk 0:02:44]}  Nxc5 {[%clk 0:02:51]} 8. Ne2 {[%clk 0:02:45]}  d5 {[%clk 0:02:26]} 9. O-O-O {[%clk 0:02:26]}  h6 {[%clk 0:02:16]} 10. Bh4 {[%clk 0:02:14]}  g5 {[%clk 0:01:56]} 11. Bg3 {[%clk 0:02:14]}  Nfe4 {[%clk 0:01:29]} 12. f3 {[%clk 0:02:04]}  Nxg3 {[%clk 0:00:59]} 13. hxg3 {[%clk 0:02:05]}  Qf6 {[%clk 0:00:59]} 14. a3 {[%clk 0:01:56]}  Bxc3 {[%clk 0:00:55]} 15. Qxc3 {[%clk 0:01:57]}  Qg6 {[%clk 0:00:46]} 16. Qc2 {[%clk 0:01:24]}  Qf6 {[%clk 0:00:40]} 17. Nc3 {[%clk 0:01:09]}  Bd7 {[%clk 0:00:34]} 18. f4 {[%clk 0:00:49]}  Rac8 {[%clk 0:00:25]} 19. fxg5 {[%clk 0:00:50]}  Qxg5 {[%clk 0:00:23]} 20. Kb1 {[%clk 0:00:50]}  dxc4 {[%clk 0:00:13]} 21. Rd4 {[%clk 0:00:35]}  e5 {[%clk 0:00:12]} 22. Rdh4 {[%clk 0:00:33]}  Bf5 {[%clk 0:00:10]} 23. e4 {[%clk 0:00:33]}  Bg6 {[%clk 0:00:10]} 24. Bxc4 {[%clk 0:00:34]}  Ne6 {[%clk 0:00:06]} 25. Bxe6 {[%clk 0:00:31]}  fxe6 {[%clk 0:00:07]} 26. Rxh6 {[%clk 0:00:30]}  Kg7 {[%clk 0:00:07]} 27. Ka2 {[%clk 0:00:22]}  Qxg3 {[%clk 0:00:07]} 28. Qb3 {[%clk 0:00:17]}  Rf7 {[%clk 0:00:06]} 29. Qxe6 {[%clk 0:00:16]}  Rxc3 {[%clk 0:00:05]} 30. Rxg6+ {[%clk 0:00:11]}  Qxg6 {[%clk 0:00:04]} 31. Qxe5+ {[%clk 0:00:12]}  Qf6 {[%clk 0:00:02]} 32. Qxc3 {[%clk 0:00:12]}  Qxc3 {[%clk 0:00:01]} 33. bxc3 {[%clk 0:00:13]}  Rf2+ {[%clk 0:00:01]} 34. Kb3 {[%clk 0:00:14]}  Rxg2 {[%clk 0:00:02]} 35. Rd1 {[%clk 0:00:14]}  Kf6 {[%clk 0:00:03]} 36. Rd7 {[%clk 0:00:14]}  Ke5 {[%clk 0:00:02]} 37. Rxb7 {[%clk 0:00:14]}  Kxe4 {[%clk 0:00:02]} 38. Rxa7 {[%clk 0:00:15]}  Kd5 {[%clk 0:00:03]} 39. Ra6 {[%clk 0:00:15]}  Kc5 {[%clk 0:00:03]} 40. a4 {[%clk 0:00:15]}  Rg1 {[%clk 0:00:04]} 41. Rh6 {[%clk 0:00:14]}  Rb1+ {[%clk 0:00:04]} 42. Ka2 {[%clk 0:00:14]}  Rb8 {[%clk 0:00:04]} 43. Ka3 {[%clk 0:00:14]}  Kc4 {[%clk 0:00:04]} 44. Rc6+ {[%clk 0:00:13]}  Kd5 {[%clk 0:00:04]} 45. Rc7 {[%clk 0:00:13]}  Kd6 {[%clk 0:00:04]} 46. Rh7 {[%clk 0:00:13]}  Kc5 {[%clk 0:00:04]} 47. Rh4 {[%clk 0:00:14]}  Kd5 {[%clk 0:00:04]} 48. a5 {[%clk 0:00:12]}  Kc5 {[%clk 0:00:03]} 49. Rb4 {[%clk 0:00:09]}  Ra8 {[%clk 0:00:03]} 50. Ka4 {[%clk 0:00:09]}  Ra6 {[%clk 0:00:03]} 51. Rb8 {[%clk 0:00:08]}  Kc4 {[%clk 0:00:02]} 52. Rc8+ {[%clk 0:00:08]}  Kd5 {[%clk 0:00:03]} 53. Kb5 {[%clk 0:00:09]}  Ra7 {[%clk 0:00:01]} 54. c4+ {[%clk 0:00:09]}  Kd6 {[%clk 0:00:01]} 55. a6 {[%clk 0:00:10]}  Rh7 {[%clk 0:00:01]} 56. Kb6 {[%clk 0:00:07]}  Rh1 {[%clk 0:00:02]} 57. a7 {[%clk 0:00:07]}  Rb1+ {[%clk 0:00:02]} 58. Ka6 {[%clk 0:00:08]}  Ra1+ {[%clk 0:00:02]} 59. Kb7 {[%clk 0:00:07]}  Rb1+ {[%clk 0:00:03]} 60. Ka8 {[%clk 0:00:08]}  Kd7 {[%clk 0:00:03]} 61. Rb8 {[%clk 0:00:08]}  Ra1 {[%clk 0:00:04]} 62. Rb5 {[%clk 0:00:07]}  Kc7 {[%clk 0:00:03]} 63. Rh5 {[%clk 0:00:06]}  Kd7 {[%clk 0:00:03]} 64. Kb7 {[%clk 0:00:04]}  Rb1+ {[%clk 0:00:02]} 65. Ka6 {[%clk 0:00:05]}  Ra1+ {[%clk 0:00:02]} 66. Ra5 {[%clk 0:00:05]}  Rxa5+ {[%clk 0:00:02]} 67. Kxa5 {[%clk 0:00:06]} 1-0


[Site "https://www.chess.com"]

[Event "Titled Tuesday Blitz September 13 Early 2022"]
[White "Indjic, Aleksandar"]
[Black "Tari, Aryan"]
[WhiteFideId "911925"]
[BlackFideId "1510045"]
[WhiteElo "2592"]
[BlackElo "2612"]
[Result "0-1"]
[Round "04"]
[TimeControl "180+1"]
[Date "2022.09.13"]
[WhiteClock "0:00:02"]
[BlackClock "0:00:10"]

1. d4 {[%clk 0:02:54]}  d5 {[%clk 0:03:00]} 2. c4 {[%clk 0:02:54]}  e6 {[%clk 0:03:00]} 3. Nf3 {[%clk 0:02:53]}  Nf6 {[%clk 0:03:00]} 4. Bg5 {[%clk 0:02:52]}  dxc4 {[%clk 0:02:53]} 5. e4 {[%clk 0:02:53]}  c5 {[%clk 0:02:48]} 6. Nc3 {[%clk 0:02:44]}  cxd4 {[%clk 0:02:43]} 7. Qxd4 {[%clk 0:02:40]}  Qxd4 {[%clk 0:02:28]} 8. Nxd4 {[%clk 0:02:41]}  h6 {[%clk 0:02:20]} 9. Bh4 {[%clk 0:02:32]}  a6 {[%clk 0:02:03]} 10. Bxc4 {[%clk 0:02:30]}  b5 {[%clk 0:02:03]} 11. Be2 {[%clk 0:02:26]}  Bb7 {[%clk 0:02:01]} 12. f3 {[%clk 0:02:25]}  Nbd7 {[%clk 0:02:01]} 13. O-O-O {[%clk 0:02:23]}  Rc8 {[%clk 0:02:00]} 14. Kb1 {[%clk 0:02:23]}  Bb4 {[%clk 0:01:58]} 15. Be1 {[%clk 0:02:16]}  O-O {[%clk 0:01:47]} 16. g4 {[%clk 0:01:44]}  Be7 {[%clk 0:01:32]} 17. a3 {[%clk 0:01:32]}  Ne5 {[%clk 0:01:29]} 18. h4 {[%clk 0:01:31]}  g6 {[%clk 0:01:18]} 19. Rg1 {[%clk 0:01:27]}  Rfd8 {[%clk 0:01:13]} 20. g5 {[%clk 0:01:09]}  hxg5 {[%clk 0:01:13]} 21. Rxg5 {[%clk 0:01:08]}  Nc4 {[%clk 0:01:07]} 22. Nc2 {[%clk 0:00:31]}  Nh5 {[%clk 0:00:54]} 23. Rg1 {[%clk 0:00:21]}  Rxd1+ {[%clk 0:00:50]} 24. Nxd1 {[%clk 0:00:19]}  Nf4 {[%clk 0:00:49]} 25. Bxc4 {[%clk 0:00:20]}  Rxc4 {[%clk 0:00:47]} 26. Nde3 {[%clk 0:00:20]}  Rc8 {[%clk 0:00:45]} 27. Rg4 {[%clk 0:00:20]}  Nd3 {[%clk 0:00:34]} 28. Bc3 {[%clk 0:00:20]}  Nf2 {[%clk 0:00:20]} 29. Rg2 {[%clk 0:00:18]}  Nd3 {[%clk 0:00:19]} 30. h5 {[%clk 0:00:18]}  Nf4 {[%clk 0:00:20]} 31. Rg1 {[%clk 0:00:16]}  Nxh5 {[%clk 0:00:20]} 32. Ng4 {[%clk 0:00:17]}  f6 {[%clk 0:00:15]} 33. Nd4 {[%clk 0:00:11]}  e5 {[%clk 0:00:15]} 34. Nc2 {[%clk 0:00:10]}  Kf7 {[%clk 0:00:16]} 35. Nge3 {[%clk 0:00:10]}  Nf4 {[%clk 0:00:15]} 36. Rh1 {[%clk 0:00:11]}  Ke6 {[%clk 0:00:15]} 37. Rh7 {[%clk 0:00:10]}  Bc6 {[%clk 0:00:14]} 38. Ng4 {[%clk 0:00:10]}  Rd8 {[%clk 0:00:11]} 39. Nb4 {[%clk 0:00:09]}  Be8 {[%clk 0:00:09]} 40. Nxa6 {[%clk 0:00:09]}  Rd3 {[%clk 0:00:09]} 41. Bb4 {[%clk 0:00:09]}  Bxb4 {[%clk 0:00:05]} 42. axb4 {[%clk 0:00:10]}  Bf7 {[%clk 0:00:03]} 43. Nc7+ {[%clk 0:00:10]}  Ke7 {[%clk 0:00:03]} 44. Nh6 {[%clk 0:00:09]}  Rxf3 {[%clk 0:00:02]} 45. Rxf7+ {[%clk 0:00:10]}  Kd6 {[%clk 0:00:03]} 46. Nxb5+ {[%clk 0:00:09]}  Kc6 {[%clk 0:00:04]} 47. Nc3 {[%clk 0:00:10]}  Nd3 {[%clk 0:00:05]} 48. b5+ {[%clk 0:00:10]}  Kc5 {[%clk 0:00:05]} 49. Ng4 {[%clk 0:00:10]}  Rg3 {[%clk 0:00:05]} 50. Nxf6 {[%clk 0:00:10]}  Rg2 {[%clk 0:00:05]} 51. Rc7+ {[%clk 0:00:08]}  Kb4 {[%clk 0:00:05]} 52. Ncd5+ {[%clk 0:00:07]}  Ka4 {[%clk 0:00:05]} 53. Ra7+ {[%clk 0:00:03]}  Kxb5 {[%clk 0:00:04]} 54. Rb7+ {[%clk 0:00:03]}  Kc4 {[%clk 0:00:05]} 55. Nd7 {[%clk 0:00:03]}  Rg1+ {[%clk 0:00:03]} 56. Kc2 {[%clk 0:00:03]}  Rg2+ {[%clk 0:00:03]} 57. Kd1 {[%clk 0:00:04]}  Nxb2+ {[%clk 0:00:03]} 58. Ke1 {[%clk 0:00:04]}  Nd3+ {[%clk 0:00:04]} 59. Kf1 {[%clk 0:00:05]}  Ra2 {[%clk 0:00:03]} 60. Rc7+ {[%clk 0:00:04]}  Kd4 {[%clk 0:00:04]} 61. N7f6 {[%clk 0:00:04]}  Rf2+ {[%clk 0:00:04]} 62. Kg1 {[%clk 0:00:04]}  Ra2 {[%clk 0:00:04]} 63. Kf1 {[%clk 0:00:04]}  Nf4 {[%clk 0:00:04]} 64. Nxf4 {[%clk 0:00:03]}  exf4 {[%clk 0:00:05]} 65. Re7 {[%clk 0:00:03]}  Ke3 {[%clk 0:00:06]} 66. Ng4+ {[%clk 0:00:03]}  Kf3 {[%clk 0:00:06]} 67. Ne5+ {[%clk 0:00:03]}  Ke3 {[%clk 0:00:07]} 68. Nxg6 {[%clk 0:00:03]}  f3 {[%clk 0:00:07]} 69. Kg1 {[%clk 0:00:02]}  f2+ {[%clk 0:00:07]} 70. Kg2 {[%clk 0:00:02]}  Ra1 {[%clk 0:00:08]} 71. Rf7 {[%clk 0:00:02]}  Rg1+ {[%clk 0:00:08]} 72. Kh3 {[%clk 0:00:03]}  Rxg6 {[%clk 0:00:09]} 73. Rxf2 {[%clk 0:00:02]}  Kxf2 {[%clk 0:00:09]} 74. e5 {[%clk 0:00:02]}  Re6 {[%clk 0:00:10]} 0-1


[Site "https://www.chess.com"]

[Event "Titled Tuesday Blitz September 13 Early 2022"]
[White "Kevlishvili, Robby"]
[Black "Kosteniuk, Alexandra"]
[WhiteFideId "1040634"]
[BlackFideId "4128125"]
[WhiteElo "2585"]
[BlackElo "2469"]
[Result "1/2-1/2"]
[Round "04"]
[TimeControl "180+1"]
[Date "2022.09.13"]
[WhiteClock "0:00:10"]
[BlackClock "0:00:08"]

1. e4 {[%clk 0:03:00]}  e5 {[%clk 0:02:59]} 2. Nf3 {[%clk 0:03:01]}  Nc6 {[%clk 0:02:59]} 3. Bb5 {[%clk 0:03:01]}  a6 {[%clk 0:02:59]} 4. Ba4 {[%clk 0:03:01]}  Nf6 {[%clk 0:02:59]} 5. d3 {[%clk 0:03:01]}  Bc5 {[%clk 0:02:58]} 6. Nc3 {[%clk 0:02:59]}  O-O {[%clk 0:02:45]} 7. Bxc6 {[%clk 0:02:57]}  dxc6 {[%clk 0:02:45]} 8. Be3 {[%clk 0:02:58]}  Bd4 {[%clk 0:02:22]} 9. h3 {[%clk 0:02:56]}  c5 {[%clk 0:02:20]} 10. O-O {[%clk 0:02:54]}  h6 {[%clk 0:02:12]} 11. Qc1 {[%clk 0:02:43]}  Qd6 {[%clk 0:01:54]} 12. Ne2 {[%clk 0:02:42]}  Bxe3 {[%clk 0:01:53]} 13. Qxe3 {[%clk 0:02:40]}  Nh5 {[%clk 0:01:47]} 14. a4 {[%clk 0:02:39]}  Bd7 {[%clk 0:01:40]} 15. b3 {[%clk 0:02:34]}  Rae8 {[%clk 0:01:40]} 16. Nd2 {[%clk 0:02:28]}  b6 {[%clk 0:01:34]} 17. Qf3 {[%clk 0:02:23]}  Qg6 {[%clk 0:01:32]} 18. Ng3 {[%clk 0:01:57]}  Nf4 {[%clk 0:01:30]} 19. Kh2 {[%clk 0:01:57]}  Qg5 {[%clk 0:01:15]} 20. Nc4 {[%clk 0:01:54]}  h5 {[%clk 0:01:09]} 21. Ne3 {[%clk 0:01:49]}  g6 {[%clk 0:01:07]} 22. Ne2 {[%clk 0:01:46]}  Bc6 {[%clk 0:00:52]} 23. g3 {[%clk 0:01:34]}  Nxe2 {[%clk 0:00:46]} 24. Qxe2 {[%clk 0:01:35]}  f5 {[%clk 0:00:45]} 25. h4 {[%clk 0:01:28]}  Qh6 {[%clk 0:00:45]} 26. exf5 {[%clk 0:01:16]}  gxf5 {[%clk 0:00:46]} 27. f4 {[%clk 0:01:16]}  Rf7 {[%clk 0:00:29]} 28. Rae1 {[%clk 0:01:08]}  e4 {[%clk 0:00:27]} 29. Qd2 {[%clk 0:01:00]}  a5 {[%clk 0:00:24]} 30. d4 {[%clk 0:00:57]}  Rd8 {[%clk 0:00:22]} 31. d5 {[%clk 0:00:57]}  Bb7 {[%clk 0:00:20]} 32. c4 {[%clk 0:00:55]}  Qf6 {[%clk 0:00:20]} 33. Rd1 {[%clk 0:00:53]}  Kh7 {[%clk 0:00:19]} 34. Qe2 {[%clk 0:00:53]}  Qg6 {[%clk 0:00:17]} 35. Rd2 {[%clk 0:00:53]}  Rd6 {[%clk 0:00:17]} 36. Rfd1 {[%clk 0:00:52]}  Bc8 {[%clk 0:00:18]} 37. Qf2 {[%clk 0:00:52]}  Bd7 {[%clk 0:00:18]} 38. Nc2 {[%clk 0:00:43]}  Rg7 {[%clk 0:00:18]} 39. Na3 {[%clk 0:00:41]}  Qf7 {[%clk 0:00:18]} 40. Nb1 {[%clk 0:00:38]}  Rdg6 {[%clk 0:00:17]} 41. Rg1 {[%clk 0:00:38]}  Qf6 {[%clk 0:00:17]} 42. Qe3 {[%clk 0:00:33]}  Rg4 {[%clk 0:00:17]} 43. Rdg2 {[%clk 0:00:32]}  Qd4 {[%clk 0:00:14]} 44. Re1 {[%clk 0:00:22]}  Qf6 {[%clk 0:00:13]} 45. Kh3 {[%clk 0:00:16]}  Re7 {[%clk 0:00:12]} 46. Nc3 {[%clk 0:00:16]}  Reg7 {[%clk 0:00:11]} 47. Ne2 {[%clk 0:00:16]}  Qb2 {[%clk 0:00:08]} 48. Ng1 {[%clk 0:00:15]}  Qd4 {[%clk 0:00:08]} 49. Kh2 {[%clk 0:00:15]}  Qf6 {[%clk 0:00:08]} 50. Nh3 {[%clk 0:00:15]}  Kh6 {[%clk 0:00:06]} 51. Ng5 {[%clk 0:00:15]}  Qd4 {[%clk 0:00:06]} 52. Rd2 {[%clk 0:00:14]}  Qxe3 {[%clk 0:00:06]} 53. Rxe3 {[%clk 0:00:15]}  Rg6 {[%clk 0:00:05]} 54. Nf7+ {[%clk 0:00:15]}  Kg7 {[%clk 0:00:05]} 55. Ne5 {[%clk 0:00:15]}  Rd6 {[%clk 0:00:05]} 56. Kg2 {[%clk 0:00:13]}  Rgg6 {[%clk 0:00:04]} 57. Nxg6 {[%clk 0:00:13]}  Kxg6 {[%clk 0:00:05]} 58. Kf2 {[%clk 0:00:13]}  Kf6 {[%clk 0:00:05]} 59. Re1 {[%clk 0:00:14]}  Be8 {[%clk 0:00:05]} 60. Ke3 {[%clk 0:00:14]}  Bg6 {[%clk 0:00:06]} 61. Rg2 {[%clk 0:00:15]}  Bh7 {[%clk 0:00:06]} 62. Rh1 {[%clk 0:00:15]}  Bg6 {[%clk 0:00:06]} 63. Kd2 {[%clk 0:00:15]}  Bh7 {[%clk 0:00:07]} 64. Ke3 {[%clk 0:00:15]}  Bg6 {[%clk 0:00:07]} 65. Rf2 {[%clk 0:00:14]}  Bh7 {[%clk 0:00:07]} 66. Rff1 {[%clk 0:00:12]}  Bg6 {[%clk 0:00:07]} 67. Rh2 {[%clk 0:00:10]}  Bh7 {[%clk 0:00:08]} 68. Rc1 {[%clk 0:00:10]}  Rd7 {[%clk 0:00:08]} 69. d6 {[%clk 0:00:08]}  cxd6 {[%clk 0:00:06]} 70. Rd2 {[%clk 0:00:08]}  Bg8 {[%clk 0:00:06]} 71. Rcd1 {[%clk 0:00:08]}  Ke7 {[%clk 0:00:06]} 72. Kf2 {[%clk 0:00:07]}  Be6 {[%clk 0:00:06]} 73. Ke3 {[%clk 0:00:07]}  Bf7 {[%clk 0:00:06]} 74. Re2 {[%clk 0:00:07]}  Be6 {[%clk 0:00:06]} 75. Red2 {[%clk 0:00:08]}  Bf7 {[%clk 0:00:06]} 76. Kf2 {[%clk 0:00:08]}  Rd8 {[%clk 0:00:06]} 77. Ke3 {[%clk 0:00:08]}  Be6 {[%clk 0:00:07]} 78. Kf2 {[%clk 0:00:09]}  Bf7 {[%clk 0:00:07]} 79. Ke3 {[%clk 0:00:09]}  Be6 {[%clk 0:00:08]} 80. Kf2 {[%clk 0:00:10]}  Bf7 {[%clk 0:00:08]} 1/2-1/2


[Site "https://www.chess.com"]

[Event "Titled Tuesday Blitz September 13 Early 2022"]
[White "Maksimovic, Bojan"]
[Black "Pinheiro, Iung Alicio de O."]
[WhiteFideId "14408120"]
[BlackFideId "2104350"]
[WhiteElo "2447"]
[BlackElo "2283"]
[Result "1-0"]
[Round "04"]
[TimeControl "180+1"]
[Date "2022.09.13"]
[WhiteClock "0:00:06"]
[BlackClock "0:00:08"]

1. e4 {[%clk 0:03:00]}  c5 {[%clk 0:02:57]} 2. Nf3 {[%clk 0:03:01]}  Nc6 {[%clk 0:02:56]} 3. Bb5 {[%clk 0:03:01]}  e6 {[%clk 0:02:56]} 4. O-O {[%clk 0:03:00]}  Nge7 {[%clk 0:02:56]} 5. Re1 {[%clk 0:03:00]}  a6 {[%clk 0:02:52]} 6. Bf1 {[%clk 0:03:00]}  Nd4 {[%clk 0:02:52]} 7. Nxd4 {[%clk 0:02:58]}  cxd4 {[%clk 0:02:51]} 8. c3 {[%clk 0:02:50]}  Nc6 {[%clk 0:02:51]} 9. d3 {[%clk 0:02:51]}  Bc5 {[%clk 0:02:49]} 10. Nd2 {[%clk 0:02:50]}  O-O {[%clk 0:02:47]} 11. Nf3 {[%clk 0:02:49]}  b5 {[%clk 0:02:40]} 12. b4 {[%clk 0:02:45]}  Ba7 {[%clk 0:02:37]} 13. Bb2 {[%clk 0:02:46]}  dxc3 {[%clk 0:01:46]} 14. Bxc3 {[%clk 0:02:47]}  d5 {[%clk 0:01:44]} 15. Rc1 {[%clk 0:02:40]}  Bb7 {[%clk 0:01:43]} 16. Qc2 {[%clk 0:02:27]}  Rc8 {[%clk 0:01:42]} 17. Qb2 {[%clk 0:02:26]}  d4 {[%clk 0:01:38]} 18. Bd2 {[%clk 0:02:26]}  e5 {[%clk 0:01:34]} 19. g3 {[%clk 0:02:13]}  Qd6 {[%clk 0:01:31]} 20. Nh4 {[%clk 0:02:10]}  g6 {[%clk 0:01:30]} 21. Bh3 {[%clk 0:02:09]}  Rc7 {[%clk 0:01:30]} 22. a3 {[%clk 0:02:03]}  Bc8 {[%clk 0:01:30]} 23. Bxc8 {[%clk 0:01:42]}  Rfxc8 {[%clk 0:01:31]} 24. Qb3 {[%clk 0:01:40]}  Kg7 {[%clk 0:01:17]} 25. Nf3 {[%clk 0:01:39]}  Bb6 {[%clk 0:01:15]} 26. Rc2 {[%clk 0:01:19]}  a5 {[%clk 0:00:56]} 27. Rec1 {[%clk 0:01:18]}  a4 {[%clk 0:00:48]} 28. Qa2 {[%clk 0:00:49]}  Nd8 {[%clk 0:00:36]} 29. Rxc7 {[%clk 0:00:41]}  Rxc7 {[%clk 0:00:35]} 30. Rxc7 {[%clk 0:00:41]}  Bxc7 {[%clk 0:00:36]} 31. Kf1 {[%clk 0:00:36]}  f6 {[%clk 0:00:32]} 32. Ke2 {[%clk 0:00:35]}  Ne6 {[%clk 0:00:30]} 33. Qc2 {[%clk 0:00:28]}  Qd7 {[%clk 0:00:30]} 34. Nh4 {[%clk 0:00:24]}  Bb6 {[%clk 0:00:28]} 35. Ng2 {[%clk 0:00:23]}  Qc7 {[%clk 0:00:27]} 36. Qxc7+ {[%clk 0:00:22]}  Bxc7 {[%clk 0:00:28]} 37. f4 {[%clk 0:00:23]}  Bd6 {[%clk 0:00:27]} 38. Kf3 {[%clk 0:00:23]}  Kf7 {[%clk 0:00:26]} 39. h4 {[%clk 0:00:21]}  h5 {[%clk 0:00:25]} 40. Ne1 {[%clk 0:00:15]}  f5 {[%clk 0:00:22]} 41. fxe5 {[%clk 0:00:13]}  Bxe5 {[%clk 0:00:22]} 42. exf5 {[%clk 0:00:14]}  gxf5 {[%clk 0:00:22]} 43. Ng2 {[%clk 0:00:14]}  Nc7 {[%clk 0:00:18]} 44. Bf4 {[%clk 0:00:13]}  Kf6 {[%clk 0:00:18]} 45. Bxe5+ {[%clk 0:00:13]}  Kxe5 {[%clk 0:00:19]} 46. Nf4 {[%clk 0:00:14]}  Kd6 {[%clk 0:00:17]} 47. Ne2 {[%clk 0:00:06]}  Ke5 {[%clk 0:00:16]} 48. Nf4 {[%clk 0:00:07]}  Kd6 {[%clk 0:00:16]} 49. Ke2 {[%clk 0:00:03]}  Ke5 {[%clk 0:00:14]} 50. Nxh5 {[%clk 0:00:03]}  Nd5 {[%clk 0:00:14]} 51. Kd2 {[%clk 0:00:03]}  Ne3 {[%clk 0:00:12]} 52. Nf4 {[%clk 0:00:02]}  Nf1+ {[%clk 0:00:13]} 53. Ke1 {[%clk 0:00:02]}  Nxg3 {[%clk 0:00:14]} 54. Ne2 {[%clk 0:00:02]}  Nh5 {[%clk 0:00:13]} 55. Kf2 {[%clk 0:00:02]}  Nf6 {[%clk 0:00:13]} 56. Kf3 {[%clk 0:00:03]}  Nd5 {[%clk 0:00:14]} 57. h5 {[%clk 0:00:03]}  Nf6 {[%clk 0:00:13]} 58. h6 {[%clk 0:00:03]}  Nh7 {[%clk 0:00:14]} 59. Nf4 {[%clk 0:00:03]}  Ng5+ {[%clk 0:00:14]} 60. Kg3 {[%clk 0:00:04]}  Nh7 {[%clk 0:00:13]} 61. Ne2 {[%clk 0:00:04]}  Nf6 {[%clk 0:00:13]} 62. Kh4 {[%clk 0:00:04]}  f4 {[%clk 0:00:13]} 63. Kg5 {[%clk 0:00:04]}  f3 {[%clk 0:00:13]} 64. Ng3 {[%clk 0:00:05]}  f2 {[%clk 0:00:13]} 65. Nf1 {[%clk 0:00:04]}  Nd5 {[%clk 0:00:12]} 66. h7 {[%clk 0:00:04]}  Ke6 {[%clk 0:00:09]} 67. h8=Q {[%clk 0:00:04]}  Ne7 {[%clk 0:00:10]} 68. Qf6+ {[%clk 0:00:04]}  Kd7 {[%clk 0:00:10]} 69. Qxd4+ {[%clk 0:00:04]}  Ke6 {[%clk 0:00:10]} 70. Qe4+ {[%clk 0:00:05]}  Kd6 {[%clk 0:00:10]} 71. Qd4+ {[%clk 0:00:05]}  Nd5 {[%clk 0:00:11]} 72. Qxf2 {[%clk 0:00:05]}  Nc7 {[%clk 0:00:09]} 73. Qc5+ {[%clk 0:00:05]}  Kd7 {[%clk 0:00:09]} 74. Kf5 {[%clk 0:00:06]}  Ne6 {[%clk 0:00:08]} 75. Qd5+ {[%clk 0:00:06]}  Kc7 {[%clk 0:00:08]} 76. Qxe6 {[%clk 0:00:06]} 1-0


[Site "https://www.chess.com"]

[Event "Titled Tuesday Blitz September 13 Early 2022"]
[White "Movahed, Sina"]
[Black "Turutin, Alexander"]
[WhiteFideId "42520835"]
[BlackFideId "4180623"]
[WhiteElo "2117"]
[BlackElo "2402"]
[Result "1-0"]
[Round "04"]
[TimeControl "180+1"]
[Date "2022.09.13"]
[WhiteClock "0:00:18"]
[BlackClock "0:00:04"]

1. e4 {[%clk 0:03:00]}  c6 {[%clk 0:02:58]} 2. Nf3 {[%clk 0:02:59]}  d5 {[%clk 0:02:59]} 3. Nc3 {[%clk 0:02:59]}  Bg4 {[%clk 0:02:58]} 4. h3 {[%clk 0:02:59]}  Bxf3 {[%clk 0:02:58]} 5. Qxf3 {[%clk 0:03:00]}  e6 {[%clk 0:02:58]} 6. Be2 {[%clk 0:03:00]}  Nf6 {[%clk 0:02:52]} 7. O-O {[%clk 0:02:59]}  Bc5 {[%clk 0:02:51]} 8. Rd1 {[%clk 0:02:55]}  Bd4 {[%clk 0:02:50]} 9. d3 {[%clk 0:02:55]}  Nbd7 {[%clk 0:02:44]} 10. Be3 {[%clk 0:02:48]}  Ne5 {[%clk 0:02:17]} 11. Qg3 {[%clk 0:02:46]}  Bxe3 {[%clk 0:02:17]} 12. fxe3 {[%clk 0:02:41]}  Ng6 {[%clk 0:02:12]} 13. e5 {[%clk 0:02:33]}  Nd7 {[%clk 0:02:12]} 14. d4 {[%clk 0:02:33]}  O-O {[%clk 0:02:12]} 15. Rf1 {[%clk 0:02:31]}  Qe7 {[%clk 0:01:49]} 16. Bd3 {[%clk 0:02:22]}  c5 {[%clk 0:01:23]} 17. Ne2 {[%clk 0:02:21]}  c4 {[%clk 0:00:58]} 18. Bxg6 {[%clk 0:02:19]}  fxg6 {[%clk 0:00:59]} 19. Qg4 {[%clk 0:02:11]}  Rf5 {[%clk 0:00:52]} 20. Ng3 {[%clk 0:02:05]}  Rxf1+ {[%clk 0:00:51]} 21. Rxf1 {[%clk 0:02:04]}  Rf8 {[%clk 0:00:52]} 22. e4 {[%clk 0:02:01]}  Rxf1+ {[%clk 0:00:51]} 23. Kxf1 {[%clk 0:02:01]}  Nb6 {[%clk 0:00:51]} 24. b3 {[%clk 0:01:51]}  cxb3 {[%clk 0:00:44]} 25. axb3 {[%clk 0:01:47]}  dxe4 {[%clk 0:00:35]} 26. Nxe4 {[%clk 0:01:46]}  Nd5 {[%clk 0:00:36]} 27. Ke2 {[%clk 0:01:45]}  b6 {[%clk 0:00:31]} 28. c4 {[%clk 0:01:43]}  Nc7 {[%clk 0:00:28]} 29. Nd6 {[%clk 0:01:41]}  Ne8 {[%clk 0:00:22]} 30. Nxe8 {[%clk 0:01:36]}  Qxe8 {[%clk 0:00:22]} 31. Qf3 {[%clk 0:01:37]}  Qe7 {[%clk 0:00:19]} 32. Kd3 {[%clk 0:01:30]}  h6 {[%clk 0:00:19]} 33. d5 {[%clk 0:01:25]}  exd5 {[%clk 0:00:19]} 34. Qxd5+ {[%clk 0:01:23]}  Kh7 {[%clk 0:00:17]} 35. e6 {[%clk 0:01:20]}  Qb4 {[%clk 0:00:17]} 36. Kc2 {[%clk 0:01:19]}  Qa3 {[%clk 0:00:13]} 37. Kc3 {[%clk 0:01:03]}  Qa1+ {[%clk 0:00:13]} 38. Kd3 {[%clk 0:00:30]}  Qd1+ {[%clk 0:00:12]} 39. Ke4 {[%clk 0:00:28]}  Qe2+ {[%clk 0:00:12]} 40. Kd4 {[%clk 0:00:28]}  Qd2+ {[%clk 0:00:13]} 41. Ke5 {[%clk 0:00:27]}  Qg5+ {[%clk 0:00:10]} 42. Kd6 {[%clk 0:00:25]}  Qd8+ {[%clk 0:00:10]} 43. Kc6 {[%clk 0:00:24]}  Qc8+ {[%clk 0:00:06]} 44. Kb5 {[%clk 0:00:24]}  Qc7 {[%clk 0:00:05]} 45. b4 {[%clk 0:00:20]}  a5 {[%clk 0:00:04]} 46. bxa5 {[%clk 0:00:18]}  bxa5 {[%clk 0:00:05]} 47. c5 {[%clk 0:00:19]}  Qa7 {[%clk 0:00:04]} 48. Qd7 {[%clk 0:00:18]}  Qb8+ {[%clk 0:00:04]} 49. Kc6 {[%clk 0:00:18]} 1-0


[Site "https://www.chess.com"]

[Event "Titled Tuesday Blitz September 13 Early 2022"]
[White "Perez Gormaz, Matias"]
[Black "Kravtsiv, Martyn"]
[WhiteFideId "3406342"]
[BlackFideId "14113147"]
[WhiteElo "2341"]
[BlackElo "2694"]
[Result "1-0"]
[Round "04"]
[TimeControl "180+1"]
[Date "2022.09.13"]
[WhiteClock "0:01:30"]
[BlackClock "0:00:16"]

1. e4 {[%clk 0:03:00]}  e5 {[%clk 0:02:59]} 2. Nf3 {[%clk 0:03:01]}  Nc6 {[%clk 0:03:00]} 3. Bb5 {[%clk 0:03:01]}  a6 {[%clk 0:02:59]} 4. Ba4 {[%clk 0:03:02]}  Nf6 {[%clk 0:02:59]} 5. d3 {[%clk 0:03:03]}  b5 {[%clk 0:02:57]} 6. Bb3 {[%clk 0:03:03]}  Be7 {[%clk 0:02:57]} 7. c3 {[%clk 0:03:02]}  O-O {[%clk 0:02:56]} 8. a4 {[%clk 0:03:03]}  Bb7 {[%clk 0:02:49]} 9. O-O {[%clk 0:03:02]}  d5 {[%clk 0:02:50]} 10. exd5 {[%clk 0:02:58]}  Nxd5 {[%clk 0:02:49]} 11. Re1 {[%clk 0:02:59]}  Bf6 {[%clk 0:02:27]} 12. axb5 {[%clk 0:02:48]}  axb5 {[%clk 0:02:27]} 13. Rxa8 {[%clk 0:02:49]}  Bxa8 {[%clk 0:02:27]} 14. Bd2 {[%clk 0:01:56]}  g6 {[%clk 0:02:00]} 15. Na3 {[%clk 0:01:56]}  b4 {[%clk 0:02:00]} 16. Nc4 {[%clk 0:01:55]}  bxc3 {[%clk 0:01:54]} 17. bxc3 {[%clk 0:01:55]}  Nb6 {[%clk 0:01:37]} 18. Ncxe5 {[%clk 0:01:34]}  Nxe5 {[%clk 0:01:37]} 19. Nxe5 {[%clk 0:01:35]}  Bxe5 {[%clk 0:01:36]} 20. Rxe5 {[%clk 0:01:36]}  Qxd3 {[%clk 0:01:36]} 21. Bh6 {[%clk 0:01:35]}  Qxc3 {[%clk 0:00:40]} 22. Re3 {[%clk 0:01:35]}  Qc6 {[%clk 0:00:39]} 23. Rf3 {[%clk 0:01:35]}  Qe8 {[%clk 0:00:16]} 24. Qa1 {[%clk 0:01:30]} 1-0


[Site "https://www.chess.com"]